fUSD/lending_fUSD_20251122
["ID","MTS","AMOUNT","RATE_DAILY","PERIOD"]
[394636472,1763799044713,-500.0,0.00016438,2]
[394636473,1763799044722,-500.0,0.00016438,2]
[394636474,1763799044732,-500.0,0.00016438,2]
[394636475,1763799044741,-500.0,0.00016438,2]
[394636476,1763799044750,-500.0,0.00016438,2]
[394636477,1763799044759,-500.0,0.00016438,2]
[394636478,1763799044768,-631.64,0.00016438,2]
[394636479,1763799044778,-607.72,0.00016438,2]
[394636480,1763799044789,-500.0,0.00016438,2]
[394636481,1763799044799,-511.89,0.00016438,2]
[394636482,1763799044807,-500.0,0.00016438,2]
[394636483,1763799044817,-500.0,0.00016438,2]
[394636484,1763799044826,-536.74,0.00016438,2]
[394636485,1763799044835,-500.0,0.00016438,2]
[394636486,1763799044844,-608.12,0.00016438,2]
[394636487,1763799044853,-786.28,0.00016438,2]
[394636488,1763799044862,-554.86707392,0.00016438,2]
[394636489,1763799044871,-500.0,0.00016438,2]
[394636490,1763799044880,-500.0,0.00016438,2]
[394636491,1763799044890,-500.0,0.00016438,2]
[394636492,1763799044899,-527.29,0.00016438,2]
[394636493,1763799044908,-1547.24,0.00016438,2]
[394636494,1763799044918,-927.94,0.00016438,2]
[394636495,1763799044928,-629.83,0.00016438,2]
[394636496,1763799044937,-500.0,0.00016438,2]
[394636497,1763799044947,-500.0,0.00016438,2]
[394636498,1763799044956,-980.44,0.00016438,2]
[394636499,1763799044965,-329.41787743,0.00016438,2]
[394636500,1763799044975,-574.21,0.00016438,2]
[394636501,1763799044984,-698.45,0.00016438,2]
[394636502,1763799044993,-500.0,0.00016438,2]
[394636503,1763799045003,-500.0,0.00016438,2]
[394636504,1763799045012,-742.97,0.00016438,2]
[394636505,1763799045022,-500.0,0.00016438,2]
[394636506,1763799045031,-500.0,0.00016438,2]
[394636507,1763799045040,-500.0,0.00016438,2]
[394636508,1763799045050,-500.0,0.00016438,2]
[394636509,1763799045059,-500.0,0.00016438,2]
[394636510,1763799045068,-633.37,0.00016438,2]
[394636511,1763799045077,-500.0,0.00016438,2]
[394636512,1763799045087,-322.07648745,0.00016438,2]
[394636513,1763799045096,-261.51392233,0.00016438,2]
[394636514,1763799045106,-500.0,0.00016438,2]
[394636515,1763799045115,-500.0,0.00016438,2]
[394636516,1763799045124,-500.0,0.00016438,2]
[394636517,1763799045133,-500.0,0.00016438,2]
[394636518,1763799045143,-500.0,0.00016438,2]
[394636519,1763799045152,-500.0,0.00016438,2]
[394636521,1763799045161,-500.0,0.00016438,2]
[394636522,1763799045170,-500.0,0.00016438,2]
[394636523,1763799045179,-500.0,0.00016438,2]
[394636524,1763799045188,-930.49,0.00016438,2]
[394636525,1763799045198,-696.98,0.00016438,2]
[394636526,1763799045209,-500.0,0.00016438,2]
[394636527,1763799045218,-500.0,0.00016438,2]
[394636528,1763799045227,-500.0,0.00016438,2]
[394636529,1763799045237,-566.68,0.00016438,2]
[394636530,1763799045247,-627.94,0.00016438,2]
[394636531,1763799045257,-500.0,0.00016438,2]
[394636532,1763799045266,-500.0,0.00016438,2]
[394636533,1763799045277,-500.0,0.00016438,2]
[394636534,1763799045286,-500.0,0.00016438,2]
[394636535,1763799045295,-971.33,0.00016438,2]
[394636536,1763799045304,-500.0,0.00016438,2]
[394636537,1763799045314,-606.81,0.00016438,2]
[394636538,1763799045382,-500.0,0.00016438,2]
[394636539,1763799045391,-500.0,0.00016438,2]
[394636540,1763799045400,-500.0,0.00016438,2]
[394636541,1763799045409,-500.0,0.00016438,2]
[394636542,1763799045419,-500.0,0.00016438,2]
[394636543,1763799045428,-553.05,0.00016438,2]
[394636544,1763799045438,-500.0,0.00016438,2]
[394636545,1763799045448,-500.0,0.00016438,2]
[394636546,1763799045457,-1609.54,0.00016438,2]
[394636547,1763799045467,-668.15,0.00016438,2]
[394636548,1763799045476,-500.0,0.00016438,2]
[394636549,1763799045486,-500.0,0.00016438,2]
[394636550,1763799045495,-811.45,0.00016438,2]
[394636551,1763799045504,-500.0,0.00016438,2]
[394636552,1763799045513,-500.0,0.00016438,2]
[394636553,1763799045523,-500.0,0.00016438,2]
[394636554,1763799045532,-746.85,0.00016438,2]
[394636555,1763799045541,-673.57,0.00016438,2]
[394636556,1763799045550,-713.44,0.00016438,2]
[394636557,1763799045559,-500.0,0.00016438,2]
[394636558,1763799045569,-500.0,0.00016438,2]
[394636559,1763799045578,-500.0,0.00016438,2]
[394636560,1763799045587,-575.72,0.00016438,2]
[394636561,1763799045596,-500.0,0.00016438,2]
[394636562,1763799045606,-798.94,0.00016438,2]
[394636563,1763799045615,-517.4,0.00016438,2]
[394636564,1763799045624,-500.0,0.00016438,2]
[394636565,1763799045634,-500.0,0.00016438,2]
[394636566,1763799045643,-752.46,0.00016438,2]
[394636567,1763799045652,-1092.93,0.00016438,2]
[394636568,1763799045662,-500.0,0.00016438,2]
[394636569,1763799045671,-500.0,0.00016438,2]
[394636570,1763799045681,-620.95,0.00016438,2]
[394636571,1763799045690,-826.19,0.00016438,2]
[394636572,1763799045699,-500.0,0.00016438,2]
[394636573,1763799045708,-777.41,0.00016438,2]
[394636574,1763799045718,-500.0,0.00016438,2]
[394636575,1763799045727,-525.79,0.00016438,2]
[394636576,1763799045736,-500.0,0.00016438,2]
[394636577,1763799045745,-503.18,0.00016438,2]
[394636578,1763799045755,-500.0,0.00016438,2]
[394636579,1763799045764,-500.0,0.00016438,2]
[394636580,1763799045774,-500.0,0.00016438,2]
[394636583,1763799045783,-500.0,0.00016438,2]
[394636584,1763799045792,-820.44,0.00016438,2]
[394636586,1763799045801,-611.47,0.00016438,2]
[394636588,1763799045810,-758.97,0.00016438,2]
[394636589,1763799045819,-500.0,0.00016438,2]
[394636590,1763799045828,-500.0,0.00016438,2]
[394636591,1763799045837,-552.83,0.00016438,2]
[394636592,1763799045846,-500.0,0.00016438,2]
[394636593,1763799045855,-1096.49,0.00016438,2]
[394636594,1763799045863,-318.39390966,0.00016438,2]
[394636595,1763799045873,-500.0,0.00016438,2]
[394636596,1763799045882,-514.96,0.00016438,2]
[394636597,1763799045891,-889.67,0.00016438,2]
[394636598,1763799045900,-500.0,0.00016438,2]
[394636599,1763799045909,-787.27,0.00016438,2]
[394636600,1763799045919,-500.0,0.00016438,2]
[394636601,1763799045928,-537.73,0.00016438,2]
[394636602,1763799045937,-500.0,0.00016438,2]
[394636603,1763799045946,-500.0,0.00016438,2]
[394636604,1763799045955,-500.0,0.00016438,2]
[394636605,1763799045968,-500.0,0.00016438,2]
[394636606,1763799045977,-679.58,0.00016438,2]
[394636607,1763799045986,-500.0,0.00016438,2]
[394636608,1763799045995,-500.0,0.00016438,2]
[394636609,1763799046004,-500.0,0.00016438,2]
[394636610,1763799046014,-500.0,0.00016438,2]
[394636611,1763799046023,-744.73,0.00016438,2]
[394636612,1763799046033,-903.79,0.00016438,2]
[394636613,1763799046042,-500.0,0.00016438,2]
[394636614,1763799046051,-500.0,0.00016438,2]
[394636615,1763799046060,-788.76,0.00016438,2]
[394636616,1763799046069,-500.0,0.00016438,2]
[394636618,1763799046079,-763.27,0.00016438,2]
[394636619,1763799046088,-500.0,0.00016438,2]
[394636620,1763799046098,-186.80229456,0.00016438,2]
[394636621,1763799046107,-565.68845749,0.00016438,2]
[394636622,1763799046116,-500.0,0.00016438,2]
[394636623,1763799046125,-551.61,0.00016438,2]
[394636624,1763799046134,-500.0,0.00016438,2]
[394636625,1763799046143,-500.0,0.00016438,2]
[394636626,1763799046153,-500.0,0.00016438,2]
[394636627,1763799046162,-500.0,0.00016438,2]
[394636628,1763799046172,-500.0,0.00016438,2]
[394636629,1763799046181,-710.54,0.00016438,2]
[394636630,1763799046191,-555.1,0.00016438,2]
[394636631,1763799046204,-500.0,0.00016438,2]
[394636632,1763799046213,-500.0,0.00016438,2]
[394636633,1763799046222,-430.47258789,0.00016438,2]
[394636634,1763799046232,-500.0,0.00016438,2]
[394636635,1763799046242,-971.81,0.00016438,2]
[394636636,1763799046251,-500.0,0.00016438,2]
[394636637,1763799046259,-500.0,0.00016438,2]
[394636638,1763799046268,-378.12356283,0.00016438,2]
[394636639,1763799046278,-500.0,0.00016438,2]
[394636641,1763799046287,-519.24,0.00016438,2]
[394636643,1763799046296,-733.77,0.00016438,2]
[394636644,1763799046305,-500.0,0.00016438,2]
[394636645,1763799046314,-979.66,0.00016438,2]
[394636646,1763799046323,-500.0,0.00016438,2]
[394636647,1763799046333,-1214.53,0.00016438,2]
[394636648,1763799046342,-1034.95,0.00016438,2]
[394636649,1763799046352,-500.0,0.00016438,2]
[394636650,1763799046361,-500.0,0.00016438,2]
[394636651,1763799046370,-740.22,0.00016438,2]
[394636652,1763799046379,-500.0,0.00016438,2]
[394636653,1763799046388,-726.08,0.00016438,2]
[394636654,1763799046397,-500.0,0.00016438,2]
[394636655,1763799046406,-500.0,0.00016438,2]
[394636656,1763799046416,-500.0,0.00016438,2]
[394636657,1763799046425,-500.0,0.00016438,2]
[394636658,1763799046434,-851.8,0.00016438,2]
[394636659,1763799046443,-591.67,0.00016438,2]
[394636660,1763799046452,-500.0,0.00016438,2]
[394636661,1763799046461,-500.0,0.00016438,2]
[394636662,1763799046470,-873.5,0.00016438,2]
[394636663,1763799046479,-500.0,0.00016438,2]
[394636664,1763799046488,-500.0,0.00016438,2]
[394636665,1763799046497,-500.0,0.00016438,2]
[394636666,1763799046506,-602.69,0.00016438,2]
[394636667,1763799046515,-500.0,0.00016438,2]
[394636668,1763799046524,-571.56118594,0.00016438,2]
[394636669,1763799046533,-503.93,0.00016438,2]
[394636670,1763799046542,-500.0,0.00016438,2]
[394636671,1763799046551,-500.0,0.00016438,2]
[394636672,1763799046560,-500.0,0.00016438,2]
[394636673,1763799046569,-1037.86,0.00016438,2]
[394636674,1763799046578,-500.0,0.00016438,2]
[394636675,1763799046588,-500.0,0.00016438,2]
[394636676,1763799046597,-500.0,0.00016438,2]
[394636677,1763799046608,-1044.36,0.00016438,2]
[394636678,1763799046618,-500.0,0.00016438,2]
[394636679,1763799046627,-515.1,0.00016438,2]
[394636680,1763799046636,-500.0,0.00016438,2]
[394636681,1763799046645,-500.0,0.00016438,2]
[394636682,1763799046654,-289.31585736,0.00016438,2]
[394636683,1763799046664,-1070.23,0.00016438,2]
[394636684,1763799046682,-500.0,0.00016438,2]
[394636685,1763799046700,-744.76,0.00016438,2]
[394636686,1763799046709,-1025.97,0.00016438,2]
[394636687,1763799046719,-500.0,0.00016438,2]
[394636688,1763799046727,-500.0,0.00016438,2]
[394636689,1763799046736,-500.0,0.00016438,2]
[394636690,1763799046745,-501.57,0.00016438,2]
[394636691,1763799046754,-500.0,0.00016438,2]
[394636692,1763799046763,-5398.08,0.00016438,2]
[394636693,1763799046773,-500.0,0.00016438,2]
[394636694,1763799046781,-500.0,0.00016438,2]
[394636695,1763799046791,-500.0,0.00016438,2]
[394636696,1763799046799,-239.92254139,0.00016438,2]
[394636697,1763799046808,-500.0,0.00016438,2]
[394636698,1763799046817,-500.0,0.00016438,2]
[394636699,1763799046826,-500.0,0.00016438,2]
[394636700,1763799046835,-1284.26,0.00016438,2]
[394636701,1763799046844,-500.0,0.00016438,2]
[394636702,1763799046854,-500.0,0.00016438,2]
[394636703,1763799046863,-300.0,0.00016438,2]
[394636704,1763799046872,-875.63,0.00016438,2]
[394636705,1763799046881,-500.0,0.00016438,2]
[394636706,1763799046890,-500.0,0.00016438,2]
[394636707,1763799046899,-500.0,0.00016438,2]
[394636708,1763799046908,-500.0,0.00016438,2]
[394636709,1763799046918,-978.82,0.00016438,2]
[394636710,1763799046927,-193.14670356,0.00016438,2]
[394636711,1763799047320,-306.85329644,0.00016438,2]
[394636712,1763799047329,-415.30170817,0.00016438,2]
[394636713,1763799047517,-84.69829183,0.00016438,2]
[394636714,1763799047527,-500.0,0.00016438,2]
[394636715,1763799047535,-500.0,0.00016438,2]
[394636716,1763799047544,-12.30170817,0.00016438,2]
[394636717,1763799047681,-903.42,0.00016438,2]
[394636718,1763799047695,-68.06829183,0.00016438,2]
[394636719,1763799047705,-500.0,0.00016438,2]
[394636720,1763799047713,-500.0,0.00016438,2]
[394636721,1763799047723,-816.35,0.00016438,2]
[394636722,1763799047731,-500.0,0.00016438,2]
[394636723,1763799047740,-322.68978789,0.00016438,2]
[394636724,1763799049835,150.0,0.00015761,120]
[394636726,1763799971213,696.79,0.00019178,30]
[394636729,1763800088035,1063.641067,7.945e-05,2]
[394636733,1763800167625,4203.158933,0.00015,2]
[394636735,1763800227803,250.56148335,0.0001483,2]
[394636736,1763800227843,2347.840729,0.0001483,2]
[394636743,1763800231913,-179.8614713,0.00015288,2]
[394636744,1763800231924,-150.0,0.00015366,2]
[394636745,1763800231934,-111.82767778,0.00015392,2]
[394636746,1763800231959,-317.01232222,0.00015392,2]
[394636747,1763800231969,-410.66,0.0001545,2]
[394636748,1763800231979,-200.0,0.00015524,2]
[394636749,1763800231989,-275.3,0.00015553,2]
[394636750,1763800231999,-150.0,0.00015761,2]
[394636751,1763800232008,-168.0,0.00015888,2]
[394636752,1763800232017,-182.01310552,0.00015968,2]
[394636753,1763800232026,-168.0,0.00016063,2]
[394636754,1763800232035,-1200.0,0.00016067,2]
[394636755,1763800232044,-879.0,0.00016068,2]
[394636756,1763800232053,-300.0,0.00016137,2]
[394636757,1763800232063,-300.0,0.00016137,2]
[394636758,1763800232072,-11445.5327948,0.00016138,2]
[394636759,1763800232102,-1557.6104135,0.00016138,2]
[394636760,1763800232118,-472.5292627,0.00016138,2]
[394636770,1763800237876,-278.68824296,0.00016138,2]
[394636772,1763800238034,-842.21350887,0.00016138,2]
[394636780,1763800240094,-311.5574026,0.00016138,2]
[394636781,1763800240235,-3784.94076304,0.00016138,2]
[394636782,1763800240247,-18863.43881153,0.00016138,2]
[394636783,1763800240257,-879.0,0.00016233,2]
[394636784,1763800240268,-550.0,0.00016236,2]
[394636785,1763800240277,-500.0,0.00016237,2]
[394636786,1763800240286,-500.0,0.00016237,2]
[394636787,1763800240295,-879.0,0.00016292,2]
[394636788,1763800240304,-2984.49402657,0.00016338,2]
[394636789,1763800240313,-482.02636432,0.00016338,2]
[394636790,1763800240323,-211.47229931,0.00016338,2]
[394636791,1763800240332,-578.20924308,0.0001634,2]
[394636792,1763800240343,-2984.49402651,0.000164,2]
[394636793,1763800240353,-1444.0,0.00016436,2]
[394636794,1763800240362,-500.0,0.00016437,2]
[394636795,1763800240372,-568.5648569,0.00016437,2]
[394636796,1763800240381,-500.0,0.00016437,2]
[394636797,1763800240390,-500.0,0.00016437,2]
[394636798,1763800240399,-628.35634981,0.00016437,2]
[394636799,1763800240413,-170.73942473,0.00016437,2]
[394636800,1763800240423,-500.0,0.00016438,2]
[394636801,1763800240433,-500.0,0.00016438,2]
[394636802,1763800240442,-500.0,0.00016438,2]
[394636803,1763800240452,-500.0,0.00016438,2]
[394636804,1763800240462,-1022.0236767,0.00016438,2]
[394636805,1763800240471,-500.0,0.00016438,2]
[394636806,1763800240480,-500.0,0.00016438,2]
[394636807,1763800240490,-310.69215232,0.00016438,2]
[394636808,1763800240502,-189.30784768,0.00016438,2]
[394636809,1763800240511,-8099.18215232,0.00016438,2]
[394636811,1763800243971,-268.55888394,0.00016438,2]
[394636812,1763800243984,-440.36648112,0.00016438,2]
[394636821,1763800245975,-1055.56618904,0.00016438,2]
[394636828,1763800246780,-27105.55658126,0.00016438,2]
[394636851,1763801432130,-590.98340142,0.00015189,2]
[394636852,1763801432143,-2424.40659858,0.00015189,2]
[394636853,1763801432155,-266.34,0.00015189,2]
[394636854,1763801432165,-1200.0,0.00015249,2]
[394636855,1763801432175,-1000.0,0.0001525,2]
[394636856,1763801432184,-1600.0,0.0001525,2]
[394636857,1763801432197,-150.0,0.00015288,2]
[394636858,1763801432207,-150.00000001,0.00015288,2]
[394636859,1763801432216,-300.0,0.00015304,2]
[394636860,1763801432225,-300.0,0.00015304,2]
[394636861,1763801432234,-999.0,0.00015305,3]
[394636862,1763801432243,-623.62,0.00015402,2]
[394636863,1763801432252,-150.0,0.00015447,2]
[394636864,1763801432262,-318.11165922,0.00015539,2]
[394636865,1763801432278,-1856.00834078,0.00015539,2]
[394636866,1763801432287,-578.20924308,0.00015835,2]
[394636867,1763801432296,-1000.0,0.00016038,2]
[394636868,1763801432305,-16496.38264602,0.00016038,2]
[394636869,1763801432333,-1496.72229091,0.00016038,2]
[394636870,1763801432344,-1673.59126307,0.00016038,2]
[394636871,1763801432353,-77.86735866,0.00016055,2]
[394636872,1763801432367,-355.95636921,0.00016055,2]
[394636873,1763801432378,-1923.67585619,0.00016062,2]
[394636874,1763801432394,-726.91464846,0.00016062,2]
[394636875,1763801432403,-591.50075594,0.00016062,2]
[394636876,1763801432413,-1714.14588896,0.00016111,2]
[394636877,1763801432423,-550.0,0.00016136,2]
[394636878,1763801432432,-601.70480856,0.00016137,2]
[394636879,1763801438101,-398.29519144,0.00016137,2]
[394636880,1763801438111,-245.47636787,0.00016137,2]
[394636881,1763801438125,-500.0,0.00016137,2]
[394636882,1763801438135,-500.0,0.00016137,2]
[394636883,1763801438144,-549.40673751,0.00016137,2]
[394636884,1763801438155,-500.0,0.00016137,2]
[394636885,1763801438165,-508.43689632,0.00016137,2]
[394636886,1763801438175,-500.0,0.00016137,2]
[394636887,1763801438184,-150.0,0.00016137,2]
[394636888,1763801438197,-500.0,0.00016137,2]
[394636889,1763801438211,-292.22486601,0.00016137,2]
[394636890,1763801438223,-207.77513399,0.00016137,2]
[394636891,1763801438233,-500.0,0.00016137,2]
[394636892,1763801438242,-150.0,0.00016137,2]
[394636893,1763801438252,-500.0,0.00016137,2]
[394636894,1763801438262,-150.0,0.00016137,2]
[394636895,1763801438271,-560.0,0.00016137,2]
[394636896,1763801438281,-659.0,0.00016137,2]
[394636897,1763801438291,-500.0,0.00016137,2]
[394636898,1763801438301,-151.9337633,0.00016137,2]
[394636899,1763801438311,-500.0,0.00016137,2]
[394636900,1763801438320,-150.0,0.00016137,2]
[394636901,1763801438330,-500.0,0.00016137,2]
[394636902,1763801438340,-776.0,0.00016137,2]
[394636903,1763801438349,-500.0,0.00016137,2]
[394636904,1763801438360,-150.0,0.00016137,2]
[394636905,1763801438369,-522.80951758,0.00016137,2]
[394636906,1763801438379,-500.0,0.00016137,2]
[394636910,1763801438725,-500.0,0.00016137,2]
[394636911,1763801438745,-150.0,0.00016137,2]
[394636912,1763801438754,-500.0,0.00016137,2]
[394636913,1763801438764,-150.0,0.00016137,2]
[394636914,1763801438774,-150.0,0.00016137,2]
[394636915,1763801438784,-500.0,0.00016137,2]
[394636916,1763801438794,-500.0,0.00016137,2]
[394636917,1763801438804,-153.67943308,0.00016137,2]
[394636918,1763801438814,-150.0,0.00016137,2]
[394636919,1763801438825,-152.61452645,0.00016137,2]
[394636920,1763801438835,-150.0,0.00016137,2]
[394636921,1763801438845,-500.0,0.00016137,2]
[394636922,1763801438855,-150.0,0.00016137,2]
[394636923,1763801438865,-500.0,0.00016137,2]
[394636924,1763801438879,-500.0,0.00016137,2]
[394636925,1763801438891,-500.0,0.00016137,2]
[394636926,1763801438901,-500.0,0.00016137,2]
[394636927,1763801438911,-500.0,0.00016137,2]
[394636928,1763801438921,-500.0,0.00016137,2]
[394636929,1763801438931,-500.0,0.00016137,2]
[394636930,1763801438940,-500.0,0.00016137,2]
[394636931,1763801438950,-343.58683966,0.00016137,2]
[394636932,1763801438960,-500.0,0.00016137,2]
[394636933,1763801438970,-500.0,0.00016137,2]
[394636934,1763801438980,-500.0,0.00016137,2]
[394636935,1763801438991,-500.0,0.00016137,2]
[394636936,1763801439000,-500.0,0.00016137,2]
[394636937,1763801439010,-500.0,0.00016137,2]
[394636938,1763801439019,-500.0,0.00016137,2]
[394636939,1763801439030,-500.0,0.00016137,2]
[394636940,1763801439039,-500.0,0.00016137,2]
[394636941,1763801439049,-500.0,0.00016137,2]
[394636942,1763801439059,-500.0,0.00016137,2]
[394636943,1763801439068,-500.0,0.00016137,2]
[394636944,1763801439078,-500.0,0.00016137,2]
[394636945,1763801439087,-500.0,0.00016137,2]
[394636946,1763801439097,-500.0,0.00016137,2]
[394636947,1763801439106,-500.0,0.00016137,2]
[394636948,1763801439117,-500.0,0.00016137,2]
[394636949,1763801439128,-500.0,0.00016137,2]
[394636950,1763801439138,-500.0,0.00016137,2]
[394636951,1763801439148,-500.0,0.00016137,2]
[394636952,1763801439159,-500.0,0.00016137,2]
[394636953,1763801439169,-500.0,0.00016137,2]
[394636954,1763801439178,-500.0,0.00016137,2]
[394636955,1763801439188,-500.0,0.00016137,2]
[394636956,1763801439201,-500.0,0.00016137,2]
[394636957,1763801439211,-439.84944487,0.00016137,2]
[394636958,1763801439221,-500.0,0.00016137,2]
[394636959,1763801439231,-500.0,0.00016137,2]
[394636960,1763801439241,-480.58730364,0.00016137,2]
[394636961,1763801439252,-2650.59050458,0.00016155,2]
[394636962,1763801439263,-591.50075586,0.00016155,2]
[394636963,1763801439277,-152.93953339,0.00016162,2]
[394636964,1763801439288,-150.0,0.00016162,2]
[394636965,1763801439298,-500.0,0.00016162,2]
[394636966,1763801439308,-500.0,0.00016162,2]
[394636967,1763801439318,-500.0,0.00016162,2]
[394636968,1763801439328,-500.0,0.00016162,2]
[394636969,1763801439338,-150.0,0.00016162,2]
[394636970,1763801439350,-150.0,0.00016162,2]
[394636971,1763801439360,-500.0,0.00016162,2]
[394636972,1763801439370,-500.0,0.0001617,2]
[394636973,1763801439381,-185.03826187,0.0001619,2]
[394636974,1763801439391,-2000.0,0.000162,2]
[394636975,1763801439402,-500.0,0.00016237,2]
[394636976,1763801439415,-1772.53898173,0.00016248,2]
[394636977,1763801439430,-878.05152285,0.00016248,2]
[394636978,1763801439441,-591.50075586,0.00016248,2]
[394636979,1763801439453,-1141.36150769,0.00016248,2]
[394636980,1763801439466,-433.8237278,0.0001626,2]
[394636981,1763801439476,-500.0,0.00016274,2]
[394636982,1763801439486,-500.0,0.00016274,2]
[394636983,1763801439499,-500.0,0.00016274,2]
[394636984,1763801439509,-500.0,0.00016274,2]
[394636985,1763801439518,-560.0,0.00016274,2]
[394636986,1763801439529,-659.0,0.00016274,2]
[394636987,1763801439540,-500.0,0.00016274,2]
[394636988,1763801439550,-150.0,0.00016274,2]
[394636989,1763801439560,-500.0,0.00016274,2]
[394636990,1763801439570,-776.0,0.00016274,2]
[394636991,1763801439581,-150.0,0.00016274,2]
[394636992,1763801439592,-15.7242368,0.00016274,2]
[394636993,1763801439605,-484.2757632,0.00016274,2]
[394636994,1763801439616,-500.0,0.00016274,2]
[394636995,1763801439627,-151.7667529,0.00016274,2]
[394636997,1763801439637,-500.0,0.00016274,2]
[394636998,1763801439647,-150.0,0.00016274,2]
[394636999,1763801439657,-228.59241107,0.00016274,2]
[394637000,1763801439669,-500.0,0.00016274,2]
[394637001,1763801439679,-500.0,0.00016274,2]
[394637002,1763801439689,-150.0,0.00016274,2]
[394637003,1763801439699,-227.41451534,0.00016274,2]
[394637004,1763801439709,-500.0,0.00016274,2]
[394637005,1763801439718,-150.0,0.00016274,2]
[394637006,1763801439728,-500.0,0.00016274,2]
[394637007,1763801439738,-609.30044477,0.00016289,2]
[394637008,1763801439748,-500.0,0.00016289,2]
[394637009,1763801439758,-500.0,0.00016289,2]
[394637010,1763801439769,-442.86671244,0.00016289,2]
[394637011,1763801439779,-17581.1035997,0.0001629,2]
[394637012,1763801439826,-2274.620975,0.0001629,2]
[394637013,1763801439839,-316.2268097,0.0001629,2]
[394637014,1763801439856,-595.1295878,0.0001629,2]
[394637015,1763801439867,-765.12099932,0.0001629,2]
[394637016,1763801439880,-335.88089378,0.0001629,2]
[394637017,1763801439891,-3021.95472993,0.0001629,2]
[394637035,1763801440460,-500.0,0.00016137,2]
[394637036,1763801440470,-500.0,0.00016274,2]
[394637038,1763801440480,-557.38467929,0.0001629,2]
[394637045,1763801440565,-15432.01283848,0.0001629,2]
[394637046,1763801440576,-211631.2641271,0.0001629,2]
[394637048,1763801440588,-62340.7211703,0.0001629,2]
[394637050,1763801440599,-14781.7604828,0.0001629,2]
[394637052,1763801440611,-150.0,0.00016299,2]
[394637053,1763801440622,-500.0,0.00016299,2]
[394637054,1763801440633,-500.0,0.00016299,2]
[394637055,1763801440643,-500.0,0.00016299,2]
[394637056,1763801440653,-500.0,0.00016299,2]
[394637058,1763801440664,-218.70493281,0.00016299,2]
[394637060,1763801440675,-150.0,0.00016299,2]
[394637063,1763801440687,-500.0,0.00016299,2]
[394637065,1763801440698,-2650.59050458,0.00016341,2]
[394637067,1763801440710,-591.50075586,0.00016341,2]
[394637069,1763801440722,-500.0,0.00016411,2]
[394637071,1763801440733,-500.0,0.00016411,2]
[394637073,1763801440744,-500.0,0.00016411,2]
[394637075,1763801440755,-500.0,0.00016411,2]
[394637077,1763801440765,-560.0,0.00016411,2]
[394637079,1763801440776,-659.0,0.00016411,2]
[394637081,1763801440786,-500.0,0.00016411,2]
[394637083,1763801440797,-150.0,0.00016411,2]
[394637086,1763801440808,-500.0,0.00016411,2]
[394637088,1763801440819,-776.0,0.00016411,2]
[394637090,1763801440830,-150.0,0.00016411,2]
[394637092,1763801440841,-196.44177563,0.00016411,2]
[394637094,1763801440851,-500.0,0.00016411,2]
[394637096,1763801440862,-500.0,0.00016411,2]
[394637098,1763801440873,-150.0,0.00016411,2]
[394637099,1763801440884,-500.0,0.00016411,2]